fUSD/lending_fUSD_20250208
["ID","MTS","AMOUNT","RATE_DAILY","PERIOD"]
[352268271,1739021460960,-774.96,0.00010795,2]
[352268272,1739021460971,-885.17,0.00010795,2]
[352268273,1739021460980,-1000.0,0.000108,2]
[352268274,1739021460990,-500.0,0.00010801,2]
[352268275,1739021461000,-500.0,0.00010801,2]
[352268276,1739021461010,-500.0,0.00010801,2]
[352268277,1739021461020,-500.0,0.00010801,2]
[352268278,1739021461029,-500.0,0.00010801,2]
[352268279,1739021461039,-500.0,0.00010801,2]
[352268280,1739021461050,-500.0,0.00010801,2]
[352268281,1739021461059,-500.0,0.00010801,2]
[352268282,1739021461069,-500.0,0.00010801,2]
[352268283,1739021461080,-500.0,0.00010801,2]
[352268284,1739021461089,-515.18,0.00010801,2]
[352268285,1739021461102,-541.35,0.00010801,2]
[352268286,1739021461112,-500.0,0.00010801,2]
[352268287,1739021461122,-500.0,0.00010801,2]
[352268288,1739021461133,-168.90455467,0.00010801,2]
[352268289,1739021461142,-500.0,0.00010801,2]
[352268290,1739021461152,-500.0,0.00010801,2]
[352268291,1739021461162,-500.0,0.00010801,2]
[352268292,1739021461172,-500.0,0.00010801,2]
[352268293,1739021461182,-500.0,0.00010801,2]
[352268294,1739021461192,-500.0,0.00010801,2]
[352268295,1739021461203,-500.0,0.00010801,2]
[352268296,1739021461216,-500.0,0.00010801,2]
[352268297,1739021461227,-500.0,0.00010801,2]
[352268298,1739021461237,-500.0,0.00010801,2]
[352268299,1739021461247,-500.0,0.00010801,2]
[352268300,1739021461256,-500.0,0.00010801,2]
[352268301,1739021461267,-501.77,0.00010801,2]
[352268302,1739021461278,-500.0,0.00010801,2]
[352268303,1739021461289,-500.0,0.00010801,2]
[352268304,1739021461299,-500.0,0.00010801,2]
[352268305,1739021461310,-500.0,0.00010801,2]
[352268306,1739021461320,-500.0,0.00010801,2]
[352268307,1739021461330,-500.0,0.00010801,2]
[352268308,1739021461340,-500.0,0.00010801,2]
[352268309,1739021461351,-500.0,0.00010801,2]
[352268310,1739021461361,-500.0,0.00010801,2]
[352268311,1739021461370,-500.0,0.00010801,2]
[352268312,1739021461381,-500.0,0.00010801,2]
[352268313,1739021461392,-500.0,0.00010801,2]
[352268314,1739021461402,-500.0,0.00010801,2]
[352268315,1739021461412,-500.0,0.00010801,2]
[352268316,1739021461422,-500.0,0.00010801,2]
[352268317,1739021461432,-500.0,0.00010801,2]
[352268318,1739021461441,-500.0,0.00010801,2]
[352268319,1739021461451,-574.49817129,0.00010801,2]
[352268320,1739021461461,-500.0,0.00010801,2]
[352268321,1739021461471,-500.0,0.00010801,2]
[352268322,1739021461481,-792.08,0.00010801,2]
[352268323,1739021461490,-500.0,0.00010801,2]
[352268324,1739021461501,-500.0,0.00010801,2]
[352268325,1739021461511,-500.0,0.00010801,2]
[352268326,1739021461521,-500.0,0.00010801,2]
[352268327,1739021461531,-1089.73,0.00010801,2]
[352268328,1739021461542,-733.81,0.00010801,2]
[352268329,1739021461552,-973.85,0.00010801,2]
[352268330,1739021461562,-2109.14,0.00010801,2]
[352268331,1739021461572,-933.15,0.00010801,2]
[352268332,1739021461582,-500.0,0.00010801,2]
[352268333,1739021461593,-613.73,0.00010801,2]
[352268334,1739021461603,-2019.15,0.00010801,2]
[352268335,1739021461613,-693.14,0.00010801,2]
[352268336,1739021461623,-500.0,0.00010801,2]
[352268337,1739021461632,-1443.42,0.00010801,2]
[352268338,1739021461642,-1450.66,0.00010801,2]
[352268339,1739021461652,-500.0,0.00010801,2]
[352268340,1739021461662,-500.0,0.00010801,2]
[352268341,1739021461672,-658.45,0.00010801,2]
[352268342,1739021461682,-1943.65,0.00010801,2]
[352268343,1739021461691,-500.0,0.00010801,2]
[352268344,1739021461701,-2382.04,0.00010801,2]
[352268345,1739021461711,-1027.19,0.00010801,2]
[352268346,1739021461720,-500.0,0.00010801,2]
[352268347,1739021461730,-895.93,0.00010801,2]
[352268348,1739021461739,-2442.04,0.00010801,2]
[352268349,1739021461749,-500.0,0.00010801,2]
[352268350,1739021461759,-936.62,0.00010801,2]
[352268351,1739021461768,-1437.26,0.00010801,2]
[352268352,1739021461778,-624.75,0.00010801,2]
[352268353,1739021461787,-500.0,0.00010801,2]
[352268354,1739021461797,-518.91,0.00010801,2]
[352268355,1739021461807,-500.0,0.00010801,2]
[352268356,1739021461816,-500.0,0.00010801,2]
[352268357,1739021461826,-1448.65,0.00010801,2]
[352268358,1739021461836,-604.61,0.00010801,2]
[352268359,1739021461846,-2263.66,0.00010801,2]
[352268360,1739021461856,-614.55,0.00010801,2]
[352268361,1739021461865,-500.0,0.00010801,2]
[352268362,1739021461875,-1506.761465,0.00010802,2]
[352268363,1739021462156,-1760.383417,0.00010802,2]
[352268364,1739021462166,-684.67,0.00010802,2]
[352268365,1739021462176,-500.0,0.00010802,2]
[352268366,1739021462186,-715.56,0.00010802,2]
[352268367,1739021462197,-500.0,0.00010802,2]
[352268368,1739021462210,-500.0,0.00010802,2]
[352268369,1739021462221,-500.0,0.00010802,2]
[352268370,1739021462231,-930.79,0.00010802,2]
[352268371,1739021462242,-500.0,0.00010802,2]
[352268372,1739021462252,-734.58,0.00010802,2]
[352268373,1739021462262,-500.0,0.00010802,2]
[352268374,1739021462273,-500.0,0.00010802,2]
[352268375,1739021462285,-500.0,0.00010802,2]
[352268376,1739021462295,-584.98,0.00010802,2]
[352268377,1739021462305,-1132.16,0.00010802,2]
[352268378,1739021462315,-887.38,0.00010802,2]
[352268379,1739021462325,-613.72,0.00010802,2]
[352268380,1739021462335,-500.0,0.00010802,2]
[352268381,1739021462348,-940.72,0.00010802,2]
[352268382,1739021462358,-500.0,0.00010802,2]
[352268383,1739021462367,-500.0,0.00010802,2]
[352268384,1739021462377,-932.43,0.00010802,2]
[352268385,1739021462387,-500.0,0.00010802,2]
[352268386,1739021462396,-500.0,0.00010802,2]
[352268387,1739021462406,-500.0,0.00010802,2]
[352268388,1739021462416,-500.0,0.00010802,2]
[352268389,1739021462425,-152.672805,0.00010802,2]
[352268390,1739021462434,-500.0,0.00010802,2]
[352268391,1739021462444,-1118.23,0.00010802,2]
[352268392,1739021462453,-500.0,0.00010802,2]
[352268393,1739021462463,-153.55625,0.00010802,2]
[352268394,1739021462472,-760.9,0.00010802,2]
[352268395,1739021462481,-500.0,0.00010802,2]
[352268396,1739021462490,-500.0,0.00010802,2]
[352268397,1739021462500,-500.0,0.00010802,2]
[352268398,1739021462509,-755.08,0.00010802,2]
[352268399,1739021462518,-701.54,0.00010802,2]
[352268400,1739021462528,-500.0,0.00010802,2]
[352268401,1739021462538,-500.0,0.00010802,2]
[352268402,1739021462556,-500.0,0.00010802,2]
[352268403,1739021462576,-926.98,0.00010802,2]
[352268404,1739021462586,-500.0,0.00010802,2]
[352268405,1739021462600,-500.0,0.00010802,2]
[352268406,1739021462610,-500.0,0.00010802,2]
[352268407,1739021462620,-500.0,0.00010802,2]
[352268408,1739021462630,-825.95,0.00010802,2]
[352268409,1739021462640,-500.0,0.00010802,2]
[352268410,1739021462649,-500.0,0.00010802,2]
[352268411,1739021462658,-569.58,0.00010802,2]
[352268412,1739021462667,-500.0,0.00010802,2]
[352268413,1739021462677,-500.0,0.00010802,2]
[352268414,1739021462686,-1113.59,0.00010802,2]
[352268415,1739021462696,-500.0,0.00010802,2]
[352268416,1739021462705,-500.0,0.00010802,2]
[352268417,1739021462714,-500.0,0.00010802,2]
[352268418,1739021462724,-500.0,0.00010802,2]
[352268419,1739021462733,-500.0,0.00010802,2]
[352268420,1739021462743,-1098.41,0.00010802,2]
[352268421,1739021462752,-500.0,0.00010802,2]
[352268422,1739021462762,-500.0,0.00010802,2]
[352268423,1739021462772,-500.0,0.00010802,2]
[352268424,1739021462781,-878.51,0.00010802,2]
[352268425,1739021462790,-524.67,0.00010802,2]
[352268426,1739021462800,-589.79,0.00010802,2]
[352268427,1739021462811,-500.0,0.00010802,2]
[352268428,1739021462820,-500.0,0.00010802,2]
[352268429,1739021462830,-776.8,0.00010802,2]
[352268430,1739021462840,-1439.01,0.00010802,2]
[352268431,1739021462854,-977.59,0.00010802,2]
[352268432,1739021462863,-500.0,0.00010802,2]
[352268433,1739021462872,-518.87,0.00010802,2]
[352268434,1739021462881,-586.18,0.00010802,2]
[352268435,1739021462893,-500.0,0.00010802,2]
[352268436,1739021462903,-500.0,0.00010802,2]
[352268437,1739021462912,-855.52,0.00010802,2]
[352268438,1739021462922,-913.73,0.00010802,2]
[352268439,1739021462931,-548.56,0.00010802,2]
[352268440,1739021462941,-500.0,0.00010802,2]
[352268441,1739021462950,-500.0,0.00010802,2]
[352268442,1739021462960,-500.0,0.00010802,2]
[352268443,1739021462968,-942.25,0.00010802,2]
[352268444,1739021462978,-500.0,0.00010802,2]
[352268445,1739021462987,-500.0,0.00010802,2]
[352268446,1739021462996,-500.0,0.00010802,2]
[352268447,1739021463006,-643.97,0.00010802,2]
[352268448,1739021463016,-908.34,0.00010802,2]
[352268449,1739021463026,-936.57,0.00010802,2]
[352268450,1739021463035,-742.91,0.00010802,2]
[352268451,1739021463045,-900.55,0.00010802,2]
[352268452,1739021463055,-500.0,0.00010802,2]
[352268453,1739021463065,-500.0,0.00010802,2]
[352268454,1739021463075,-908.88,0.00010802,2]
[352268455,1739021463084,-500.0,0.00010802,2]
[352268456,1739021463096,-978.2,0.00010802,2]
[352268457,1739021463106,-908.42,0.00010802,2]
[352268458,1739021463116,-732.41,0.00010802,2]
[352268459,1739021463126,-500.0,0.00010802,2]
[352268460,1739021463136,-1214.33,0.00010802,2]
[352268461,1739021463146,-554.39,0.00010802,2]
[352268462,1739021463156,-1010.15,0.00010802,2]
[352268463,1739021463166,-2428.03,0.00010802,2]
[352268464,1739021463176,-500.0,0.00010802,2]
[352268465,1739021463186,-884.5,0.00010802,2]
[352268466,1739021463196,-1200.16,0.00010802,2]
[352268467,1739021463208,-5420.56,0.00010802,2]
[352268468,1739021463218,-1258.75,0.00010802,2]
[352268469,1739021463228,-1118.69,0.00010802,2]
[352268470,1739021463238,-1588.33,0.00010802,2]
[352268471,1739021463250,-896.11,0.00010802,2]
[352268472,1739021463260,-500.0,0.00010802,2]
[352268473,1739021463269,-1439.17,0.00010802,2]
[352268474,1739021463279,-794.47,0.00010802,2]
[352268475,1739021463289,-500.0,0.00010802,2]
[352268476,1739021463299,-571.6,0.00010802,2]
[352268477,1739021463308,-920.36,0.00010802,2]
[352268478,1739021463318,-1334.12,0.00010802,2]
[352268479,1739021463328,-1217.52,0.00010802,2]
[352268480,1739021463337,-1131.43,0.00010802,2]
[352268481,1739021463349,-588.17,0.00010802,2]
[352268482,1739021463360,-991.46,0.00010802,2]
[352268483,1739021463370,-500.0,0.00010802,2]
[352268484,1739021463379,-1017.16,0.00010802,2]
[352268485,1739021463389,-733.79,0.00010802,2]
[352268486,1739021463398,-3270.86,0.00010802,2]
[352268487,1739021463409,-569.88,0.00010802,2]
[352268488,1739021463419,-1422.78,0.00010802,2]
[352268489,1739021463429,-1321.24,0.00010802,2]
[352268490,1739021463440,-500.0,0.00010802,2]
[352268491,1739021463449,-2291.76,0.00010802,2]
[352268492,1739021463459,-1009.53,0.00010802,2]
[352268493,1739021463469,-500.0,0.00010802,2]
[352268494,1739021463478,-1020.34,0.00010802,2]
[352268495,1739021463488,-560.48,0.00010802,2]
[352268496,1739021463497,-518.57,0.00010802,2]
[352268497,1739021463507,-888.74,0.00010802,2]
[352268498,1739021463516,-6776.61,0.00010802,2]
[352268499,1739021463526,-1427.19,0.00010802,2]
[352268500,1739021463535,-500.0,0.00010802,2]
[352268501,1739021463545,-2658.58,0.00010802,2]
[352268502,1739021463554,-1649.01,0.00010802,2]
[352268503,1739021463564,-797.73,0.00010802,2]
[352268504,1739021463574,-969.25,0.00010802,2]
[352268505,1739021463584,-1236.49,0.00010802,2]
[352268506,1739021463593,-1376.87,0.00010802,2]
[352268507,1739021463604,-1150.23,0.00010802,2]
[352268508,1739021463614,-500.0,0.00010802,2]
[352268509,1739021463623,-1458.93,0.00010802,2]
[352268510,1739021463633,-2061.0,0.00010802,2]
[352268511,1739021463642,-1575.14,0.00010802,2]
[352268512,1739021463651,-1087.69,0.00010802,2]
[352268513,1739021463661,-1008.68,0.00010802,2]
[352268514,1739021463670,-1024.98,0.00010802,2]
[352268515,1739021463680,-1276.35,0.00010802,2]
[352268516,1739021463691,-5315.42,0.00010802,2]
[352268517,1739021463701,-500.0,0.00010802,2]
[352268518,1739021463711,-1639.56,0.00010802,2]
[352268519,1739021463720,-887.92,0.00010802,2]
[352268520,1739021463730,-866.96,0.00010802,2]
[352268521,1739021463740,-1491.22,0.00010802,2]
[352268522,1739021463750,-500.0,0.00010802,2]
[352268523,1739021463759,-2150.42,0.00010802,2]
[352268524,1739021463769,-1999.01,0.00010802,2]
[352268525,1739021463779,-500.0,0.00010802,2]
[352268526,1739021463789,-460.52967249,0.00010802,2]
[352268527,1739021463799,-500.0,0.00010802,2]
[352268528,1739021463808,-1238.85,0.00010802,2]
[352268529,1739021463818,-500.0,0.00010802,2]
[352268530,1739021463827,-1772.33,0.00010802,2]
[352268531,1739021463837,-723.22,0.00010802,2]
[352268532,1739021463848,-524.48,0.00010802,2]
[352268533,1739021463858,-1821.75,0.00010802,2]
[352268534,1739021463868,-500.0,0.00010802,2]
[352268535,1739021463878,-2569.9,0.00010802,2]
[352268536,1739021463888,-500.0,0.00010802,2]
[352268537,1739021463897,-979.84,0.00010802,2]
[352268538,1739021463907,-1589.1,0.00010802,2]
[352268539,1739021463917,-500.0,0.00010802,2]
[352268540,1739021463927,-3567.02,0.00010802,2]
[352268541,1739021463936,-500.0,0.00010802,2]
[352268542,1739021463946,-500.0,0.00010802,2]
[352268543,1739021463956,-646.94,0.00010802,2]
[352268544,1739021463966,-1268.56,0.00010802,2]
[352268545,1739021463976,-1774.78,0.00010802,2]
[352268546,1739021463985,-500.0,0.00010802,2]
[352268547,1739021463995,-1824.03,0.00010802,2]
[352268548,1739021464007,-2166.29,0.00010802,2]
[352268549,1739021464017,-718.34,0.00010802,2]
[352268550,1739021464026,-1000.0,0.00010802,2]
[352268551,1739021464036,-2367.62,0.00010802,2]
[352268552,1739021464045,-967.44,0.00010802,2]
[352268553,1739021464054,-996.19,0.00010802,2]
[352268554,1739021464064,-978.89,0.00010802,2]
[352268555,1739021464073,-1164.39,0.00010802,2]
[352268556,1739021464082,-1326.59,0.00010802,2]
[352268557,1739021464093,-2912.96,0.00010802,2]
[352268558,1739021464103,-1201.48,0.00010802,2]
[352268559,1739021464112,-1010.66,0.00010802,2]
[352268560,1739021464122,-1794.88,0.00010802,2]
[352268561,1739021464131,-1069.33,0.00010802,2]
[352268562,1739021464140,-678.89,0.00010802,2]
[352268563,1739021464150,-1002.55,0.00010802,2]
[352268564,1739021464160,-2141.6,0.00010802,2]
[352268565,1739021464169,-564.37,0.00010802,2]
[352268566,1739021464179,-706.03,0.00010802,2]
[352268567,1739021464189,-670.39,0.00010802,2]
[352268568,1739021464199,-830.2,0.00010802,2]
[352268569,1739021464211,-500.0,0.00010803,2]
[352268570,1739021464221,-500.0,0.00010803,2]
[352268571,1739021464230,-500.0,0.00010803,2]
[352268572,1739021464239,-500.0,0.00010803,2]
[352268573,1739021464249,-500.0,0.00010803,2]
[352268574,1739021464259,-500.0,0.00010803,2]
[352268575,1739021464268,-500.0,0.00010803,2]
[352268576,1739021464277,-500.0,0.00010803,2]
[352268577,1739021464286,-500.0,0.00010803,2]
[352268578,1739021464297,-500.0,0.00010803,2]
[352268579,1739021464308,-500.0,0.00010803,2]
[352268580,1739021464320,-500.0,0.00010803,2]
[352268581,1739021464329,-509.84,0.00010803,2]
[352268582,1739021464339,-500.0,0.00010803,2]
[352268583,1739021464352,-1034.4,0.00010803,2]
[352268584,1739021464362,-500.0,0.00010803,2]
[352268585,1739021464372,-1017.61,0.00010803,2]
[352268586,1739021464382,-1000.22,0.00010803,2]
[352268587,1739021464393,-500.0,0.00010803,2]
[352268588,1739021464402,-500.0,0.00010803,2]
[352268589,1739021464413,-892.76,0.00010803,2]
[352268590,1739021464423,-500.0,0.00010803,2]
[352268591,1739021464432,-500.0,0.00010803,2]
[352268592,1739021464442,-500.0,0.00010803,2]
[352268593,1739021464452,-500.0,0.00010803,2]
[352268594,1739021464462,-538.2,0.00010803,2]
[352268595,1739021464472,-3995.461,0.00010808,2]
[352268596,1739021464481,-159.793,0.00010808,2]
[352268597,1739021464491,-150.57633488,0.00010817,2]
[352268598,1739021464501,-370.51073981,0.00010821,2]
[352268599,1739021464510,-27791.54881314,0.00010835,2]
[352268600,1739021464576,-1000.0,0.00010861,2]
[352268601,1739021464586,-1000.0,0.00010861,3]
[352268602,1739021464595,-150.57633488,0.00010875,2]
[352268603,1739021464604,-2178.0,0.00010882,2]
[352268604,1739021464613,-551.13,0.00010899,2]
[352268605,1739021464622,-680.23,0.00010899,2]
[352268606,1739021464632,-1961.42018637,0.000109,2]
[352268607,1739021464641,-1961.42018633,0.000109,2]
[352268608,1739021464650,-1961.42018633,0.000109,2]
[352268609,1739021464659,-1961.42018633,0.000109,2]
[352268610,1739021464669,-1961.42018633,0.000109,2]
[352268611,1739021464678,-1961.42018633,0.000109,2]
[352268612,1739021464687,-1961.42018633,0.000109,2]
[352268613,1739021464696,-1961.42018633,0.000109,2]
[352268614,1739021464705,-1961.42018633,0.000109,2]
[352268615,1739021464714,-1961.42018633,0.000109,2]
[352268616,1739021464723,-1961.42018633,0.000109,2]
[352268617,1739021464733,-1961.42018633,0.000109,2]
[352268618,1739021464742,-1961.42018633,0.000109,2]
[352268619,1739021464751,-1961.42018633,0.000109,2]
[352268620,1739021464760,-1961.42018633,0.000109,2]
[352268621,1739021464769,-1961.42018633,0.000109,2]
[352268622,1739021464778,-1961.42018633,0.000109,2]
[352268623,1739021464787,-1961.42018633,0.000109,2]
[352268624,1739021464797,-1961.42018633,0.000109,2]
[352268625,1739021464806,-1961.42018633,0.000109,2]
[352268626,1739021464815,-312.336,0.00010925,2]
[352268627,1739021464824,-150.0,0.00010925,2]
[352268628,1739021464833,-1108.0,0.00010925,2]
[352268629,1739021464842,-150.57633488,0.00010932,2]
[352268630,1739021464853,-500.0,0.00010938,2]
[352268631,1739021464862,-500.0,0.00010938,2]
[352268632,1739021464871,-500.0,0.00010938,2]
[352268633,1739021464880,-500.0,0.00010938,2]
[352268634,1739021464889,-500.0,0.00010938,2]
[352268635,1739021464899,-567.6159612,0.00010938,2]
[352268636,1739021464908,-500.0,0.00010938,2]
[352268637,1739021464917,-500.0,0.00010938,2]
[352268638,1739021464927,-500.0,0.00010938,2]
[352268639,1739021464935,-500.0,0.00010938,2]
[352268640,1739021464945,-515.18,0.00010938,2]
[352268641,1739021464954,-541.35,0.00010938,2]
[352268642,1739021464963,-500.0,0.00010938,2]
[352268643,1739021464972,-500.0,0.00010938,2]
[352268644,1739021464981,-500.0,0.00010938,2]
[352268645,1739021464990,-591.8,0.00010938,2]
[352268646,1739021464999,-500.0,0.00010938,2]
[352268647,1739021465008,-500.0,0.00010938,2]
[352268648,1739021465017,-500.0,0.00010938,2]
[352268649,1739021465026,-500.0,0.00010938,2]
[352268650,1739021465035,-500.0,0.00010938,2]
[352268651,1739021465044,-500.0,0.00010938,2]
[352268652,1739021465054,-500.0,0.00010938,2]
[352268653,1739021465063,-500.0,0.00010938,2]
[352268654,1739021465072,-500.0,0.00010938,2]
[352268655,1739021465081,-500.0,0.00010938,2]
[352268656,1739021465090,-501.77,0.00010938,2]
[352268657,1739021465101,-500.0,0.00010938,2]
[352268658,1739021465109,-500.0,0.00010938,2]
[352268659,1739021465118,-500.0,0.00010938,2]
[352268660,1739021465127,-500.0,0.00010938,2]
[352268661,1739021465136,-500.0,0.00010938,2]
[352268662,1739021465145,-500.0,0.00010938,2]
[352268663,1739021465154,-500.0,0.00010938,2]
[352268664,1739021465164,-500.0,0.00010938,2]
[352268665,1739021465172,-500.0,0.00010938,2]
[352268666,1739021465181,-500.0,0.00010938,2]
[352268667,1739021465191,-500.0,0.00010938,2]
[352268668,1739021465200,-500.0,0.00010938,2]
[352268669,1739021465212,-500.0,0.00010938,2]
[352268670,1739021465221,-591.11813534,0.00010938,2]
[352268671,1739021465230,-296.77961463,0.00010938,2]
[352268672,1739021465239,-500.0,0.00010938,2]
[352268673,1739021465248,-500.0,0.00010938,2]
[352268674,1739021465258,-500.0,0.00010938,2]
[352268675,1739021465267,-500.0,0.00010938,2]
[352268676,1739021465275,-792.08,0.00010938,2]
[352268677,1739021465286,-500.0,0.00010938,2]
[352268678,1739021465295,-500.0,0.00010938,2]
[352268679,1739021465304,-500.0,0.00010938,2]
[352268680,1739021465313,-500.0,0.00010938,2]
[352268681,1739021465323,-1089.73,0.00010938,2]
[352268682,1739021465332,-733.81,0.00010938,2]
[352268683,1739021465342,-973.85,0.00010938,2]
[352268684,1739021465352,-2109.14,0.00010938,2]
[352268685,1739021465361,-933.15,0.00010938,2]
[352268686,1739021465371,-500.0,0.00010938,2]
[352268687,1739021465380,-613.73,0.00010938,2]
[352268688,1739021465390,-2019.15,0.00010938,2]
[352268689,1739021465400,-693.14,0.00010938,2]
[352268690,1739021465409,-500.0,0.00010938,2]
[352268691,1739021465418,-1443.42,0.00010938,2]
[352268692,1739021465427,-1450.66,0.00010938,2]
[352268693,1739021465437,-619.06043984,0.00010938,2]
[352268694,1739021465446,-500.0,0.00010938,2]
[352268695,1739021465455,-658.45,0.00010938,2]
[352268696,1739021465464,-1943.65,0.00010938,2]
[352268697,1739021465474,-241.82276636,0.00010938,2]
[352268698,1739021465483,-2382.04,0.00010938,2]
[352268699,1739021465492,-1027.19,0.00010938,2]
[352268700,1739021465502,-500.0,0.00010938,2]
[352268701,1739021465511,-895.93,0.00010938,2]
[352268702,1739021465520,-2442.04,0.00010938,2]
[352268703,1739021465530,-500.0,0.00010938,2]
[352268704,1739021465539,-936.62,0.00010938,2]
[352268705,1739021465548,-1437.26,0.00010938,2]
[352268706,1739021465557,-624.75,0.00010938,2]
[352268707,1739021465566,-500.0,0.00010938,2]
[352268708,1739021465576,-518.91,0.00010938,2]
[352268709,1739021465585,-500.0,0.00010938,2]
[352268710,1739021465595,-500.0,0.00010938,2]
[352268711,1739021465605,-1448.65,0.00010938,2]
[352268712,1739021465615,-604.61,0.00010938,2]
[352268713,1739021465624,-2263.66,0.00010938,2]
[352268714,1739021465633,-614.55,0.00010938,2]
[352268715,1739021465643,-500.0,0.00010938,2]
[352268716,1739021465652,-1506.761465,0.00010939,2]
[352268717,1739021465661,-1760.383417,0.00010939,2]
[352268718,1739021465670,-154.492046,0.00010939,2]
[352268719,1739021465681,-684.67,0.00010939,2]
[352268720,1739021465690,-500.0,0.00010939,2]
[352268721,1739021465700,-715.56,0.00010939,2]
[352268722,1739021465709,-500.0,0.00010939,2]
[352268723,1739021465719,-500.0,0.00010939,2]
[352268724,1739021465728,-500.0,0.00010939,2]
[352268725,1739021465740,-930.79,0.00010939,2]
[352268726,1739021465749,-500.0,0.00010939,2]
[352268727,1739021465758,-734.58,0.00010939,2]
[352268728,1739021465767,-500.0,0.00010939,2]
[352268729,1739021465777,-500.0,0.00010939,2]
[352268730,1739021465786,-500.0,0.00010939,2]
[352268731,1739021465795,-584.98,0.00010939,2]
[352268732,1739021465805,-1132.16,0.00010939,2]
[352268733,1739021465814,-887.38,0.00010939,2]
[352268734,1739021465823,-613.72,0.00010939,2]
[352268735,1739021465833,-500.0,0.00010939,2]
[352268736,1739021465842,-940.72,0.00010939,2]
[352268737,1739021465856,-500.0,0.00010939,2]
[352268738,1739021465865,-500.0,0.00010939,2]
[352268739,1739021465875,-932.43,0.00010939,2]
[352268740,1739021465884,-500.0,0.00010939,2]
[352268741,1739021465893,-500.0,0.00010939,2]
[352268742,1739021465903,-500.0,0.00010939,2]
[352268743,1739021465912,-500.0,0.00010939,2]
[352268744,1739021465922,-500.0,0.00010939,2]
[352268745,1739021465931,-1118.23,0.00010939,2]
[352268746,1739021465940,-500.0,0.00010939,2]
[352268747,1739021465949,-760.9,0.00010939,2]
[352268748,1739021465959,-500.0,0.00010939,2]
[352268749,1739021465968,-500.0,0.00010939,2]
[352268750,1739021465977,-500.0,0.00010939,2]
[352268751,1739021465987,-755.08,0.00010939,2]
[352268752,1739021465996,-701.54,0.00010939,2]
[352268753,1739021466005,-500.0,0.00010939,2]
[352268754,1739021466015,-500.0,0.00010939,2]
[352268755,1739021466026,-500.0,0.00010939,2]
[352268756,1739021466035,-926.98,0.00010939,2]
[352268757,1739021466045,-500.0,0.00010939,2]
[352268758,1739021466055,-500.0,0.00010939,2]
[352268759,1739021466065,-500.0,0.00010939,2]
[352268760,1739021466074,-500.0,0.00010939,2]
[352268761,1739021466084,-825.95,0.00010939,2]
[352268762,1739021466093,-500.0,0.00010939,2]
[352268763,1739021466104,-500.0,0.00010939,2]
[352268764,1739021466114,-569.58,0.00010939,2]
[352268765,1739021466123,-500.0,0.00010939,2]
[352268766,1739021466133,-500.0,0.00010939,2]
[352268767,1739021466143,-1113.59,0.00010939,2]
[352268768,1739021466153,-500.0,0.00010939,2]
[352268769,1739021466162,-500.0,0.00010939,2]
[352268770,1739021466172,-500.0,0.00010939,2]